Cogmind - Beta 16.1 @@@ ROGUE MODE // 2026.04.08 @ 19:53:17 Player: WarMechanic Result: Destroyed by Explosive Trap Performance ------------- Evolutions (2) 1000 Regions Visited (4) 800 Robots Destroyed (135) 675 Value Destroyed (3261) 3261 Prototype IDs (5) 100 Alien Tech Used (0) 0 Bonus (223) 223 TOTAL SCORE: 6059 Bonus ------- High Alert Combat Kills 11 Follower Combat Kills 212 Cogmind --------- Core Integrity 0/550 Matter 300/300 Energy 265/265 System Corruption 30% Temperature Cool (0) Movement Rolling (165) Ox5 Location -8/Storage Parts ------- > --- POWER (1) -------- Improved Ion Engine > --- PROPULSION (3) --- Light Treads Light Treads Compact Wheel > --- UTILITY (5) ------ Advanced Heat Sink Huge Storage Unit Machine Analyzer Utility Shielding Hacking Suite > --- WEAPON (2) ------- Particle Gun Maul > --- INVENTORY (25) --- Improved Ion Engine Light Nuclear Core Light Nuclear Core Light Angular Momentum Engine Light Treads Light Treads Armored Wheel Cooling System Huge Storage Unit Large Matter Pod (150) Structural Scanner Improved Sensor Array Improved Terrain Scanner Transport Network Coupler Utility Shielding Improved Medium Armor Plating Improved Medium Armor Plating Hacking Suite Spread Laser Pulse Rifle Pulse Rifle Shock Bomb Launcher Shock Bomb Launcher Mini Grenade Launcher Improved Datajack Peak State ------------ > --- POWER ------------ Cooled Ion Engine > --- PROPULSION ------- Aluminum Leg Aluminum Leg Armored Wheel > --- UTILITY ---------- Advanced Heat Sink Huge Storage Unit Machine Analyzer Utility Shielding Improved Medium Armor Plating > --- WEAPON ----------- Pulse Rifle Pulse Rifle > --- INVENTORY -------- Light Nuclear Core Light Nuclear Core Light Angular Momentum Engine Compact Wheel Improved Heat Sink Huge Storage Unit Large Matter Pod Structural Scanner Improved Terrain Scanner Transport Network Coupler Melee Analysis Suite Improved Medium Armor Plating Improved Medium Armor Plating Hacking Suite Particle Gun Spread Laser Pulse Rifle Pulse Rifle Advanced Beam Rifle Shock Bomb Launcher Mini Grenade Launcher Improved Datajack Maul [Rating: 33] Favorites ----------- Power Deuterium Engine Engine Deuterium Engine Power Core Light Nuclear Core Propulsion Light Treads Treads Light Treads Leg Aluminum Leg Wheel Compact Wheel Utility Seismic Detector Device Seismic Detector Storage Huge Storage Unit Processor Machine Analyzer Hackware Hacking Suite Protection Light Armor Plating Weapon Pulse Rifle Energy Gun Pulse Rifle Ballistic Gun Improved Assault Rifle Launcher Shock Bomb Launcher Impact Weapon Maul Special Melee Weapon Improved Datajack Build | -11 -10 -9 -8 -8 ------- Run | Yrd Mat Mat Mat Sto Slots Evolved 4 | . . 2 2 . Power . | . . . . . Propulsion 1 | . . 1 . . Utility 3 | . . 1 2 . Weapon . | . . . . . Parts Attached 104 | 8 13 34 33 16 Power 11 | 1 3 4 1 2 Engine 10 | 1 2 4 1 2 Core 1 | . 1 . . . Reactor . | . . . . . Propulsion 32 | 2 2 12 9 7 Treads 15 | 1 1 9 1 3 Leg 7 | . . . 4 3 Wheel 10 | 1 1 3 4 1 Hover . | . . . . . Flight . | . . . . . Utility 32 | 2 2 11 15 2 Device 12 | 1 1 4 6 . Storage 4 | 1 1 1 . 1 Processor 2 | . . . 2 . Hackware 1 | . . . . 1 Protection 13 | . . 6 7 . Artifact . | . . . . . Weapon 29 | 3 6 7 8 5 Energy Gun 24 | 3 6 5 6 4 Energy Cannon . | . . . . . Ballistic Gun 1 | . . 1 . . Ballistic Cannon . | . . . . . Launcher 1 | . . . 1 . Special Weapon . | . . . . . Impact Weapon 2 | . . 1 1 . Slashing Weapon . | . . . . . Piercing Weapon . | . . . . . Special Melee Weapon 1 | . . . . 1 Unidentified Prototypes 5 | . . 3 1 1 Corrupted Parts 5 | . . . 2 3 System Corruption 14 | . . . 8 6 Parts Lost 27 | . 4 5 14 4 Power 6 | . 2 1 2 1 Propulsion 10 | . 1 2 6 1 Utility 7 | . . 2 5 . Weapon 4 | . 1 . 1 2 Highest Loss Streak 5 | . 3 2 5 3 To Critical Strikes . | . . . . . Average Backups 22 | 4 17 23 24 23 Power 2 | . 1 2 2 3 Propulsion 2 | 1 2 2 1 2 Utility 10 | . 6 11 11 10 Weapon 7 | 1 7 7 8 6 Tool/Special . | . . . . . Unused Backups 36 | . 6 13 3 14 Power 6 | . . 2 . 4 Propulsion 4 | . 1 2 1 . Utility 17 | . 2 5 1 9 Weapon 9 | . 3 4 1 1 Tool/Special . | . . . . . Average Slot Usage (%) 97 | . 93 99 95 98 Engine 9 | . 7 10 8 9 Core 1 | . 6 . . . Treads 16 | . 14 22 12 5 Leg 1 | . . . 3 12 Wheel 10 | . 13 10 8 9 Device 11 | . 8 10 13 9 Storage 10 | . 14 11 9 9 Processor 3 | . . . 8 9 Protection 9 | . . 10 12 9 Energy Gun 17 | . 27 17 15 12 Impact Weapon 2 | . . 4 1 4 Peak Build Rating 33 | 8 11 20 33 33 Average Rating 19 | 5 9 17 27 29 On Entrance 13 | . 8 10 19 31 Avg Prop Armor Cover (%) 15 | 14 13 17 14 17 Naked Turns . | . . . . . Heaviest Build 106 | 13 48 103 106 103 Greatest Support 60 | 16 16 60 40 16 Greatest Overweight (x) 8 | . 4 6 8 6 Average Overweight (x) 4 | . 3 5 6 5 Largest Inventory Capacity 25 | 8 20 25 25 25 Average Capacity 23 | 7 19 23 25 25 Most Carried 25 | 8 20 25 25 25 Average Carried 22 | 4 17 23 24 23 Final Capacity 25 | 8 20 25 25 25 Final Carried 25 | 8 20 25 25 25 Class Distribution -------------------- 75% | Mutant 23% | Scavenger-Mutant Dominant Class ---------------- Mutant | -10/Materials Mutant | -9/Materials Mutant | -8/Materials Scavenger-Mutant | -8/Storage Resources | -11 -10 -9 -8 -8 ----------- Run | Yrd Mat Mat Mat Sto Matter Collected 2094 | 361 389 428 575 341 Remotely . | . . . . . Salvage Created 4692 | 209 543 1902 1269 769 Parts 238 | 19 32 86 67 34 Haulers Intercepted 9 | . 2 6 1 . Recyclers Shooed 4 | . . 2 2 . Parts Field Recycled . | . . . . . Retrieved Matter . | . . . . . Parts Self-Destructed . | . . . . . Prevented . | . . . . . Parts Restored . | . . . . . Kills | -11 -10 -9 -8 -8 ------- Run | Yrd Mat Mat Mat Sto Combat Hostiles Destroyed 77 | . 11 30 28 8 Melee 12 | . . 7 3 2 Guns 48 | . 11 15 19 3 AOE 8 | . . . 6 2 Classes Destroyed 14 | 3 5 4 1 1 Worker 9 | 2 1 4 1 1 Builder 11 | . . 2 6 3 Tunneler 6 | 4 . 2 . . Hauler 9 | . 2 6 1 . Recycler 9 | 1 . 3 2 3 Mechanic 2 | . . . 1 1 Operator 5 | . 1 3 . 1 Watcher 7 | . 1 5 1 . Swarmer 16 | . 3 6 7 . Grunt 40 | . 8 11 17 4 Brawler 1 | . . 1 . . Duelist 2 | . . 2 . . Sentry 17 | . . 10 4 3 Hunter 1 | . . . . 1 Best Kill Streak 11 | 5 3 8 11 7 Combat Bots Only 4 | . 3 4 4 4 Max Kills in Single Turn 5 | 1 1 2 5 2 Gunslinging . | . . . . . Exploded 2 | . . . 2 1 Melee 1 | . . 1 1 1 Uniques/NPCs Destroyed . | . . . . . Combat | -11 -10 -9 -8 -8 -------- Run | Yrd Mat Mat Mat Sto Hostile Shots Fired 485 | . 79 183 178 45 Missed 123 | . 18 45 45 15 Hits 362 | . 61 138 133 30 Melee 8 | . . 8 . . Projectile 354 | . 61 130 133 30 Critical Strikes 14 | . . 2 11 1 Actively Blocked 1 | . . . . 1 Damage Taken 5684 | . 738 1780 2702 464 Core 1003 | . 167 276 491 69 Absorbed by Shields . | . . . . . Redirected to Shielding 32 | . . . 14 18 Regen/Repaired (Parts) 29 | . . 29 . . Core Remaining (%) 54 | 100 33 31 . . Volleys Fired 240 | 12 59 80 67 22 Largest 2 | 2 2 2 2 2 Hottest 130 | 80 80 126 128 130 Shots Fired 453 | 24 118 157 125 29 Gun 438 | 24 118 157 116 23 Cannon . | . . . . . Launcher 15 | . . . 9 6 Special . | . . . . . Kinetic . | . . . . . Thermal 429 | 24 113 157 116 19 Explosive . | . . . . . Electromagnetic 24 | . 5 . 9 10 Robot Hit Streak 26 | 8 11 26 22 17 Robot Miss Streak 7 | 1 7 3 5 6 Penetration Max . | . . . . . Secondary Targets 3 | . 1 . 2 . Max Gunslinging Chain 1 | . 1 . 1 . Shots Hit Robots 389 | 16 77 162 103 31 Core Hits 197 | 8 31 57 80 21 Critical Kills 6 | . . 5 . 1 Critical Parts Destroyed 11 | . . 9 . 2 Critical Strikes 30 | . . 21 5 4 Burn 13 | . . 7 5 1 Smash 17 | . . 14 . 3 Melee Attacks 103 | . . 62 19 22 Impact 102 | . . 62 19 21 Slashing . | . . . . . Piercing . | . . . . . Sneak Attacks 14 | . . 7 1 6 Combat Hostiles 1 | . . 1 . . Follow-up Attacks . | . . . . . Damage Inflicted 9563 | 187 857 3700 3614 1205 Guns 4806 | 187 857 1848 1655 259 Cannons . | . . . . . Explosions 1923 | . . . 1574 349 Melee 2819 | . . 1852 370 597 Ramming 15 | . . . 15 . Kinetic . | . . . . . Thermal 5834 | 187 818 1848 2750 231 Explosive . | . . . . . Electromagnetic 895 | . 39 . 479 377 Impact 2819 | . . 1852 370 597 Slashing . | . . . . . Piercing . | . . . . . Highest Corruption 30 | . 2 . 24 30 Average Corruption 11 | . 2 . 11 27 Corruption Purged . | . . . . . Corruption Blocked . | . . . . . Effects 115 | . 20 . 57 38 Message Errors 23 | . 2 . 10 11 Matter Fused 28 | . 6 . 14 8 Heat Flow Errors 9 | . 2 . 6 1 Energy Discharges 13 | . 5 . 4 4 Parts Rejected 4 | . 2 . 1 1 Data Loss (minor) 13 | . . . 7 6 Data Loss (major) 7 | . 1 . 4 2 Misfires 6 | . . . 4 2 Alerts 5 | . 2 . 2 1 Misdirections 3 | . . . 2 1 Weapon Failures 4 | . . . 3 1 Overload Shots . | . . . . . Overflow Damage 1271 | . . 663 394 214 Projectiles . | . . . . . Explosions 303 | . . . 303 . Melee 968 | . . 663 91 214 Knockbacks 8 | . . 6 1 1 Impact 7 | . . 5 1 1 Kinetic . | . . . . . Secondary 1 | . . 1 . . Self-Inflicted Damage 289 | . . . 268 21 Shots 12 | . . . 9 3 Rammed 6 | . . . 6 . Targets Rammed 6 | . . . 6 . Kicked . | . . . . . Crushed . | . . . . . Highest Temperature 518 | 144 518 390 497 179 Average Temperature 127 | 55 123 119 160 47 Received Heat Transfer 2154 | . 387 399 1224 144 Effects 23 | . 6 8 9 . Shutdowns 6 | . 2 3 1 . Energy Bleed 3 | . . . 3 . Interference 9 | . 2 2 5 . Matter Decay 2 | . 1 1 . . Short Circuit 2 | . . 2 . . Damage (minor) 1 | . 1 . . . Siege Activations . | . . . . . Martial Activations . | . . . . . Shielding Activations . | . . . . . Robots Disrupted . | . . . . . Combat Hostiles . | . . . . . Robots Corrupted 16 | . . 10 1 5 Combat Hostiles 9 | . . 8 . 1 Parts Fried 18 | . . 13 . 5 Impact Corruptions 41 | . . 28 3 10 Robots Melted . | . . . . . Combat Hostiles . | . . . . . Parts Melted 22 | . 4 7 10 1 Heat Transferred 12001 | 425 1850 4541 4607 578 Parts Sabotaged . | . . . . . Parts Stolen . | . . . . . Parts Stripped . | . . . . . Power Chain Reactions 4 | . . . 3 1 Alert | -11 -10 -9 -8 -8 ------- Run | Yrd Mat Mat Mat Sto Maximum Alert Level 2 | . . 1 2 1 Low Security (%) 63 | 100 100 40 75 87 Level 1 34 | . . 59 19 12 Level 2 1 | . . . 5 . Level 3 . | . . . . . Level 4 . | . . . . . Level 5 . | . . . . . High Security . | . . . . . Max Security . | . . . . . Peak Influence 412 | 10 62 322 412 294 Initial 166 | . . . 134 166 Average 145 | 2 12 191 152 147 Influence Increases 2910 | 35 334 1043 970 528 Destroy 0b10 Robot/C 1660 | . 220 600 560 280 Destroy 0b10 Robot/NC 300 | 35 25 125 60 55 Destroy Leader 414 | . 46 192 94 82 Allied During Kill 89 | . . . . 89 Successful Hack 143 | . 28 60 40 15 Disable Machine 60 | . . . 60 . Destroy Structure 64 | . . 6 51 7 Lose Combat Pursuer 180 | . 15 60 105 . Influence Decreases 2662 | 35 334 724 895 674 Entered New Map 413 | . . . 185 228 Time Decay 1917 | 35 312 674 570 326 Lost Part 252 | . 22 50 140 40 Lost Ally 80 | . . . . 80 Squads Dispatched 6 | . . 2 3 1 Investigation 3 | . . 1 2 . Extermination . | . . . . . Reinforcement 3 | . . 1 1 1 Assault . | . . . . . Garrison . | . . . . . Intercept . | . . . . . Searches Triggered . | . . . . . Construction Impeded 1 | . . . 1 . Haulers Reinforced . | . . . . . Active Scanning Responses . | . . . . . Cargo Convoy Interrupts . | . . . . . Stealth | -11 -10 -9 -8 -8 --------- Run | Yrd Mat Mat Mat Sto Distress Signals 9 | . 1 3 3 2 Communications Jammed . | . . . . . Distress Signals . | . . . . . Times Spotted 129 | . 22 45 42 20 Peak Tracking Total 7 | . 5 4 7 4 Tactical Retreats 10 | . 1 3 6 . Traps | -11 -10 -9 -8 -8 ------- Run | Yrd Mat Mat Mat Sto Traps Triggered 4 | . 1 . 3 . Indirectly . | . . . . . Trap Hack Attempts . | . . . . . Triggered . | . . . . . Disarmed . | . . . . . Reprogrammed . | . . . . . Reused . | . . . . . Traps Extracted . | . . . . . Installed . | . . . . . Triggered . | . . . . . Machines | -11 -10 -9 -8 -8 ---------- Run | Yrd Mat Mat Mat Sto Machines Disabled 4 | . . . 4 . Max in Single Turn 3 | . . . 3 . Machines Repaired . | . . . . . Machines Dismantled . | . . . . . Machines Sabotaged . | . . . . . Overloaded Fab Kills . | . . . . . Hacking | -11 -10 -9 -8 -8 --------- Run | Yrd Mat Mat Mat Sto Machines Accessed 32 | . 7 13 8 4 Terminals 27 | . 7 10 6 4 Fabricators . | . . . . . Repair Stations 1 | . . 1 . . Recycling Units 1 | . . 1 . . Scanalyzers 3 | . . 1 2 . Garrison Access . | . . . . . Total Hacks 91 | . 19 41 19 12 Successful 34 | . 5 17 8 4 Failed 55 | . 13 24 10 8 Catastrophic 14 | . 4 6 2 2 Database Lockouts 2 | . 1 . 1 . Manual 64 | . 16 26 13 9 Terminals 77 | . 19 33 13 12 Fabricators . | . . . . . Repair Stations 4 | . . 4 . . Recycling Units 2 | . . 2 . . Scanalyzers 8 | . . 2 6 . Garrison Access . | . . . . . Terminal Hacks 16 | . 4 9 . 3 Part Schematic 6 | . 2 3 . 1 Robot Schematic 1 | . 1 . . . Robot Analysis 3 | . . 3 . . Open Door 1 | . . . . 1 Branch Access Points 2 | . . 1 . 1 Terminal Index 1 | . . 1 . . Hauler Manifests 1 | . 1 . . . Zone Layout 1 | . . 1 . . Fabricator Hacks . | . . . . . Repair Station Hacks 2 | . . 2 . . Scan Component 1 | . . 1 . . Repair 1 | . . 1 . . Recycling Unit Hacks 1 | . . 1 . . Retrieve Components 1 | . . 1 . . Scanalyzer 5 | . . 1 4 . Insert Component 1 | . . . 1 . Analyze 1 | . . . 1 . Retrieve Study 3 | . . 1 2 . Garrison Access Hacks . | . . . . . Unauthorized Hacks 10 | . 1 4 4 1 Terminals 10 | . 1 4 4 1 Track 6 | . . 3 3 . Botnet 3 | . 1 . 1 1 Operators 1 | . . 1 . . Fabricators . | . . . . . Repair Stations . | . . . . . Recycling Units . | . . . . . Scanalyzers . | . . . . . Garrison Access . | . . . . . Data Cores Recovered 2 | . 1 1 . . Used . | . . . . . Hacking Detections 32 | . 7 13 8 4 Full Trace Events 6 | . 1 3 1 1 Feedback Events . | . . . . . Feedback Blocked . | . . . . . Robot Schematics Acquired 1 | . 1 . . . Robots Built . | . . . . . Authchips . | . . . . . Time . | . . . . . Total Robot Build Rating . | . . . . . Part Schematics Acquired 7 | . 2 3 1 1 Parts Built . | . . . . . Authchips . | . . . . . Time . | . . . . . Total Part Build Rating . | . . . . . Part Studies Acquired 3 | . . 1 2 . Parts Repaired 1 | . . 1 . . Time 64 | . . 64 . . Parts Recycled . | . . . . . Recycled Matter . | . . . . . Retrieved Matter . | . . . . . Retrieved Components 9 | . . 9 . . Parts Scanalyzed 1 | . . . 1 . Part Schematics Acquired 1 | . . . 1 . Parts Damaged . | . . . . . Bothacking | -11 -10 -9 -8 -8 ------------ Run | Yrd Mat Mat Mat Sto Used RIF Installer . | . . . . . Robots Hacked 1 | . . . . 1 Non-combat 1 | . . . . 1 Combat . | . . . . . Robot Hacks Applied 1 | . . . . 1 check_alert 1 | . . . . 1 Relay Couplers Released . | . . . . . Fabnet Peak Effective % . | . . . . . Robots Rewired . | . . . . . Allies Hacked . | . . . . . Hacks Repelled . | . . . . . Allies | -11 -10 -9 -8 -8 -------- Run | Yrd Mat Mat Mat Sto Total Allies 10 | . . . . 10 Largest Group 10 | . . . . 10 Highest-Rated Group 173 | . . . . 173 Highest-Rated Ally 29 | . . . . 29 Total Orders 1 | . . . . 1 ROAM 1 | . . . . 1 Ally Attacks 36 | . . . . 36 Total Damage 384 | . . . . 384 Kills 8 | . . . . 8 Allies Corrupted . | . . . . . Allies Melted . | . . . . . Intel | -11 -10 -9 -8 -8 ------- Run | Yrd Mat Mat Mat Sto Active Infowar (turns) 6636 | 56 866 4077 1637 . Sensors 1255 | . . . 1255 . Structural 33 | . . . 33 . Seismic 6420 | 56 866 4077 1421 . Machine Analysis 1601 | . . . 1601 . Robot Analysis Total 3 | . . 3 . . Derelict Logs Recovered . | . . . . . Drone Launches . | . . . . . Drone Recoveries . | . . . . . Exploration | -11 -10 -9 -8 -8 ------------- Run | Yrd Mat Mat Mat Sto Turns Passed 8839 | 141 1420 4258 2288 732 Spaces Moved 3554 | 87 854 1517 804 292 Core 6 | 6 . . . . Treads 89 | . . 85 4 . Legs . | . . . . . Wheels 3459 | 81 854 1432 800 292 Hover . | . . . . . Flight . | . . . . . Fastest Speed 50 | 50 100 140 165 165 Average Speed 168 | 96 135 181 186 167 Slowest Speed 320 | 100 140 240 320 180 Overloaded Moves . | . . . . . Propulsion Burnouts . | . . . . . Robots Hopped . | . . . . . Potential Cave-ins 12 | . . . 12 . Cave-ins Triggered 2 | . . . 2 . Exploration Rate (%) 55 | 4 94 91 50 39 Regions Visited 4 Branch Regions 1 Pre-discovered Areas . | . . . . . Known Exits Taken . | . . . . . Unknown Exits Taken 4 | 1 1 1 1 . Scrap Searched . | . . . . . Spaces Dug 21 | . . 5 11 5 Terrain Destroyed 85 | . . 5 75 5 Melee 19 | . . 5 9 5 Projectile . | . . . . . AOE 66 | . . . 66 . Terrain Rammed . | . . . . . Walls Destroyed . | . . . . . Machines Disabled . | . . . . . Actions | -11 -10 -9 -8 -8 --------- Run | Yrd Mat Mat Mat Sto Total 5760 | 115 1011 2759 1414 461 Wait 1533 | 1 37 984 425 86 Move 3549 | 86 853 1516 802 292 Hop . | . . . . . Pick Up 102 | 8 27 39 23 5 Fast Attach 15 | 7 2 1 4 1 Attach 32 | . 6 8 14 4 Detach 3 | . 2 . 1 . Swap 92 | 1 8 30 33 20 Drop 84 | . 17 39 19 9 Fire 240 | 12 59 80 67 22 Melee 103 | . . 62 19 22 Ram . | . . . . . Kick . | . . . . . Crush 6 | . . . 6 . Escape Stasis 1 | . . . 1 . Rewire . | . . . . . Trap . | . . . . . Miscellaneous . | . . . . . Route ------- -11/Scrapyard -10/Materials (discovered 5 exits: *Mat x3 / [*Min x2]) -9/Materials (discovered 3 exits: *Mat x2 / *Min) -8/Materials (discovered 2 exits: [*Fac] / *Sto) -8/Storage (discovered 1 exit: Rec) History --------- Turn | Location | Event 8 | -11/Scrapyard | Discovered new exit (range 16) 142 | -11/Scrapyard | Entered Materials 315 | -10/Materials | Build established: Mutant 358 | -10/Materials | Discovered new exit (range 12) 497 | -10/Materials | Discovered new exit (range 4) 519 | -10/Materials | Core integrity fell below 50% 583 | -10/Materials | Lost 3 parts (1p1n1w) 690 | -10/Materials | Discovered new exit (range 6) 713 | -10/Materials | Discovered new exit (range 10) 859 | -10/Materials | Discovered new exit (range 6) 956 | -10/Materials | Central database locked down 1562 | -10/Materials | Entered another Materials area 1562 | -9/Materials | Evolved 2 slots: Propulsion x1, Utility x1 2101 | -9/Materials | Discovered new exit (range 15) 2302 | -9/Materials | Build established: Scavenger-Mutant 3617 | -9/Materials | Core integrity fell below 50% 3654 | -9/Materials | Identified exit to Mines 3768 | -9/Materials | Build established: Mutant 4246 | -9/Materials | Repaired Broken Cld. Ion Engine 4948 | -9/Materials | Discovered new exit (range 16) 5758 | -9/Materials | Discovered new exit (range 15) 5820 | -9/Materials | Entered another Materials area 5820 | -8/Materials | Evolved 2 slots: Utility x2 6068 | -8/Materials | Discovered new exit (range 14) 6327 | -8/Materials | Discovered new exit (range 7) 7335 | -8/Materials | Crushed by falling debris 7336 | -8/Materials | Crushed by falling debris 7336 | -8/Materials | System corruption reached 10% 7367 | -8/Materials | Lost 5 parts (1p2n2u) 7428 | -8/Materials | Core integrity fell below 50% 7470 | -8/Materials | Lost 5 parts (1p1n3u) 7616 | -8/Materials | Core integrity fell below 20% 7693 | -8/Materials | Central database locked down 8108 | -8/Materials | Entered Storage 8387 | -8/Storage | Lost 3 parts (1p2w) 8399 | -8/Storage | System corruption reached 30% 8432 | -8/Storage | Build established: Scavenger-Mutant 8577 | -8/Storage | Identified exit to Recycling 8714 | -8/Storage | Assisted by bots powering up and referring to "LRC-V3" 8774 | -8/Storage | Lost 3 allies 8840 | -8/Storage | Destroyed by Explosive Trap Last Messages --------------- 08826_ K-01 Serf collects debris. 08828_ R-06 Scavenger collects Lgt. Treads. 08828_ Sneak attack on R-06 Scavenger. 08828_ Destroyed Com. Wheel. 08828_ R-06 Scavenger system corrupted by crushing effect. 08828_ R-06 Scavenger knocked back. 08829_ R-06 Scavenger system terminally corrupted. 08829_ K-01 Serf collects debris. 08829_ U-05 Engineer builds a Wall. 08832_ DAUAFOF6HX8WB:D% 7XO31OPS20#2OV88BP#JZA 08832_ U-05 Engineer lays Concrete. 08837_ W-25 Informer sends out distress signal. 08837_ U-05 Engineer lays Concrete. 08838_ Acquired Lgt. Treads. 08838_ U-05 Engineer lays Concrete. 08840_ Soldier 3a triggered Explosive Trap. 08840_ An explosion rips through the floor. 08840_ U-05 Engineer destroyed. Map ----- +----------------------------------------------------+ | | | ???????????????????????????????????????? | | ???????????????????????????????????????? | | ???????????????????????????????????????? | | ???????????????????????????????????????? | | ???????????????????????????????????????? | | ???????????????????????????????????????? | | ???????????????????????????????????????? | | ???????????????????????????????????????? | | ???????????????????????????????????????? | | ???????????????????????????????????????? | | ???????????????????????????????????????? | | ????????????####???????????????????????? | | ???????????? ???????????????????????? | | ???????????? #??????????????????????? | | ???????????? #??????????????????????? | | ???????###??# #??????????????????????? | | ???????? ?# #??????????????????????? | | ????????? ?# #??????????????????????? | | ?????????? # #??????????????????????? | | ???????????w#= #??????????????????????? | | ????????????;=!*#??????????????????????? | | ????????????#g%=#???????? ####+????????? | | ??# ??????#!==#####?? ????????? | | ???? #[ % # ???????? | | ???????????# %!@[ %=! ????????? | | ????######## g!%% # #????????????? | | ???# |g*#############??????????? | | ???# """ #=%%#[ #??????????? | | ???# ??"""" #!%=# """" #??????????? | | ???# ?????" # # ""R" #??????????? | | ???# ?????" + ku "" " ]]] ##?????????? | | ???# """"?" # # ]]] #?????????? | | ???# """ #!= # ]]] ##?????????? | | ???# #*%*+ #??????????? | | ???# +*% #####+#######??????????? | | ???###+#######+###??# #????????????????? | | ?????# #????##== #### #######??????????? | | ?????# #????#T # " ## ??????????? | | ?????# #????# ### ## "??????????? | | ?????# #????# #?# ## "??????????? | | ?????# #????#######?# ## "??????????? | | ?????# #????????????# ## "??????????? | | ?????# #????????????#%## "??????????? | | ?????# #????????????# ## """" ####### | | ?????# #????????????# ## [[* # | | ?????# #????????????# #####+######![ | | ?????# #????????????# % %######% * | | ?????# #????????????# % % %+ = | | ?????# #????????????# = #####%% | +----------------------------------------------------+ Best States ------------- Heat Dissipation 50 Energy Generation 14 Energy Capacity 280 Matter Stores 300 Matter Capacity 300 Sight Range 16 Robot Scan Range 15 Terrain Scan Density 10 Armor Coverage 375 Utility Shielding 33 Evasion (%) 40 Recoil Reduction 3 Offensive Hacking 10 Item Schematics ----------------- Huge Storage Unit | -10/Materials | Hacked Weapon Shielding | -10/Materials | Hacked EMP Blaster | -9/Materials | Hacked Com. Wheel | -9/Materials | Hacked Utility Shielding | -9/Materials | Hacked Machine Analyzer | -8/Materials | Scanalyzed Blade Saw | -8/Storage | Hacked Robot Schematics ------------------ M-13 Machinist | -10/Materials | Hacked Fabricated ------------ Nothing Repaired ---------- Cld. Ion Engine | 73% | -9/Materials | Broken Studied --------- Pulse Rifle | -9/Materials | Hacked Com. Wheel | -8/Materials | Hacked Spread Laser | -8/Materials | Hacked Alien Tech Used ----------------- None Achievements -------------- Armchair Analyst Batter Up We Love MA Challenges ------------ None Game ------ Seed ScrapoidAlloyLauncher Manual? 0 Play Time 01:27:48 Cumulative 36.3 hours Start 2026.04.08 @ 18:00:02 End 2026.04.08 @ 19:53:17 Sessions 3 Manual Loads 0 Difficulty Rogue Special Mode None Game No. 44 Rogue 44 Adventurer 0 Explorer 0 Win Type - Total 0 Types 0/0/0/0/0/0/0/0/0/0 Lore% 10 Gallery% 15 Achievement% 16 Wizard Run 0 Options --------- Layout 1 ASCII 0 Keyboard 1 Movement Arrows Keybinds 1 Fullscreen 1 Font 24/Crisp Map View 50x35 Zoom Use 0% Tactical HUD 1 Map Filters NONE Filters NONE Steam 1 RUN: 0403a07b-9922-4c83-acce-5996cc624494